fUST/lending_fUST_20250625
["ID","MTS","AMOUNT","RATE_DAILY","PERIOD"]
[367492523,1750822246385,-440.0,0.00017491,2]
[367492524,1750822246398,-746.15,0.00017491,2]
[367492525,1750822246410,-460.0,0.00017491,2]
[367492526,1750822246421,-460.0,0.00017491,2]
[367492527,1750822246434,-460.0,0.00017491,2]
[367492528,1750822246450,-460.0,0.00017491,2]
[367492529,1750822246461,-1150.89,0.00017491,2]
[367492530,1750822246471,-460.0,0.00017491,2]
[367492531,1750822246483,-460.0,0.00017491,2]
[367492532,1750822246497,-310.0,0.00017491,2]
[367492533,1750822246508,-500.0,0.00017491,2]
[367492534,1750822246518,-460.0,0.00017491,2]
[367492535,1750822246530,-460.0,0.00017491,2]
[367492536,1750822246541,-460.0,0.00017491,2]
[367492537,1750822246553,-621.42,0.00017491,2]
[367492538,1750822246565,-460.0,0.00017491,2]
[367492539,1750822246577,-460.0,0.00017491,2]
[367492540,1750822246588,-486.46055969,0.00017491,2]
[367492541,1750822246599,-632.11,0.00017491,2]
[367492542,1750822246611,-460.0,0.00017491,2]
[367492543,1750822246626,-460.0,0.00017491,2]
[367492544,1750822246638,-460.0,0.00017491,2]
[367492545,1750822246650,-460.0,0.00017491,2]
[367492546,1750822246662,-460.0,0.00017491,2]
[367492547,1750822246674,-460.0,0.00017491,2]
[367492548,1750822246686,-460.0,0.00017491,2]
[367492549,1750822246700,-460.0,0.00017491,2]
[367492550,1750822246712,-460.0,0.00017492,2]
[367492551,1750822246724,-408.46321594,0.00017492,2]
[367492552,1750822246736,-460.0,0.00017492,2]
[367492553,1750822246749,-460.0,0.00017492,2]
[367492554,1750822246760,-460.0,0.00017492,2]
[367492555,1750822246774,-239.971559,0.00017492,2]
[367492556,1750822246786,-514.39,0.00017492,2]
[367492557,1750822246798,-460.0,0.00017492,2]
[367492558,1750822246810,-547.31,0.00017492,2]
[367492559,1750822246822,-173.61,0.00017492,2]
[367492560,1750822246834,-460.0,0.00017492,2]
[367492561,1750822246851,-460.0,0.00017492,2]
[367492562,1750822246863,-507.98,0.00017492,2]
[367492563,1750822246876,-500.0,0.00017492,2]
[367492564,1750822246887,-500.0,0.00017492,2]
[367492565,1750822246899,-418.21317917,0.00017492,2]
[367492566,1750822246911,-460.0,0.00017492,2]
[367492567,1750822246923,-463.47683701,0.00017492,2]
[367492568,1750822246935,-545.61788883,0.00017492,2]
[367492569,1750822246947,-460.0,0.00017492,2]
[367492570,1750822246960,-460.0,0.00017492,2]
[367492571,1750822246972,-460.0,0.00017492,2]
[367492572,1750822246984,-245.25359292,0.00017492,2]
[367492573,1750822246995,-460.0,0.00017492,2]
[367492574,1750822247004,-443.59741198,0.00017492,2]
[367492575,1750822247013,-460.0,0.00017492,2]
[367492576,1750822247022,-515.48,0.00017492,2]
[367492577,1750822247032,-460.0,0.00017492,2]
[367492578,1750822247042,-460.0,0.00017492,2]
[367492579,1750822247052,-509.00053076,0.00017492,2]
[367492580,1750822247061,-460.0,0.00017493,2]
[367492581,1750822247071,-460.0,0.00017493,2]
[367492582,1750822247080,-460.0,0.00017493,2]
[367492583,1750822247090,-472.10707998,0.00017493,2]
[367492584,1750822247099,-460.0,0.00017493,2]
[367492585,1750822247108,-460.0,0.00017493,2]
[367492586,1750822247118,-451.55096451,0.00017493,2]
[367492587,1750822247127,-460.0,0.00017493,2]
[367492588,1750822247137,-460.0,0.00017493,2]
[367492589,1750822247146,-460.0,0.00017493,2]
[367492590,1750822247155,-627.7,0.00017493,2]
[367492591,1750822247165,-460.0,0.00017493,2]
[367492592,1750822247174,-272.38,0.00017493,2]
[367492593,1750822247184,-460.0,0.00017493,2]
[367492594,1750822247194,-460.0,0.00017493,2]
[367492595,1750822247203,-460.0,0.00017493,2]
[367492596,1750822247212,-460.0,0.00017493,2]
[367492597,1750822247221,-460.0,0.00017493,2]
[367492598,1750822247231,-460.0,0.00017493,2]
[367492599,1750822247240,-514.71,0.00017493,2]
[367492600,1750822247249,-375.50490881,0.00017493,2]
[367492601,1750822247258,-460.0,0.00017493,2]
[367492602,1750822247267,-500.0,0.00017494,2]
[367492603,1750822247276,-500.0,0.00017494,2]
[367492604,1750822247286,-460.0,0.00017495,2]
[367492605,1750822247503,-460.0,0.00017495,2]
[367492606,1750822247517,-268.41,0.00017495,2]
[367492607,1750822247533,-590.49,0.00017495,2]
[367492608,1750822247543,-500.0,0.0001753,2]
[367492609,1750822247552,-224.68595389,0.0001753,2]
[367492610,1750822247562,-500.0,0.0001753,2]
[367492611,1750822247571,-192.0812288,0.0001753,2]
[367492612,1750822247580,-501.53978447,0.00017534,2]
[367492613,1750822247589,-500.0,0.00017534,2]
[367492614,1750822247598,-500.0,0.00017551,2]
[367492615,1750822247607,-500.0,0.00017556,2]
[367492616,1750822247616,-502.24757637,0.00017558,2]
[367492617,1750822247626,-500.0,0.00017558,2]
[367492618,1750822247635,-500.0,0.00017558,2]
[367492619,1750822247644,-500.0,0.00017558,2]
[367492620,1750822247653,-500.8586686,0.00017558,2]
[367492621,1750822247663,-500.0,0.00017558,2]
[367492622,1750822247672,-533.18574769,0.00017558,2]
[367492623,1750822247682,-505.13555698,0.00017574,2]
[367492624,1750822247691,-500.0,0.0001758,2]
[367492625,1750822247701,-500.0,0.0001758,2]
[367492626,1750822247710,-176.42018452,0.0001758,2]
[367492627,1750822247719,-500.0,0.0001758,2]
[367492628,1750822247728,-500.0,0.0001758,2]
[367492629,1750822247738,-500.0,0.00017591,2]
[367492630,1750822247747,-502.29752276,0.00017591,2]
[367492631,1750822247756,-500.74985877,0.00017591,2]
[367492632,1750822247766,-501.28082104,0.0001766,2]
[367492633,1750822247776,-500.60625329,0.00017731,2]
[367492634,1750822247785,-503.14788817,0.00017731,2]
[367492635,1750822247795,-460.0,0.00017762,2]
[367492636,1750822247804,-460.0,0.00017762,2]
[367492637,1750822247815,-1104.74,0.00017763,2]
[367492638,1750822247825,-460.0,0.00017763,2]
[367492639,1750822247836,-1267.06,0.00017763,2]
[367492640,1750822247846,-1441.04,0.00017763,2]
[367492641,1750822247856,-473.33210179,0.00017763,2]
[367492642,1750822247865,-460.0,0.00017763,2]
[367492643,1750822247875,-668.7,0.00017763,2]
[367492644,1750822247884,-460.0,0.00017763,2]
[367492645,1750822247893,-703.01,0.00017763,2]
[367492646,1750822247903,-460.0,0.00017764,2]
[367492647,1750822247912,-460.0,0.00017764,2]
[367492648,1750822247921,-1130.96,0.00017764,2]
[367492649,1750822247931,-275.17,0.00017764,2]
[367492650,1750822247940,-392.24845536,0.00017764,2]
[367492651,1750822247949,-460.0,0.00017764,2]
[367492652,1750822247958,-460.0,0.00017764,2]
[367492653,1750822247967,-460.0,0.00017764,2]
[367492654,1750822247977,-893.13,0.00017764,2]
[367492655,1750822247986,-460.0,0.00017764,2]
[367492656,1750822247995,-460.0,0.00017764,2]
[367492657,1750822248004,-460.0,0.00017764,2]
[367492658,1750822248014,-460.0,0.00017764,2]
[367492659,1750822248024,-529.18,0.00017764,2]
[367492660,1750822248033,-460.0,0.00017764,2]
[367492661,1750822248042,-459.90303418,0.00017764,2]
[367492662,1750822248052,-460.0,0.00017764,2]
[367492663,1750822248062,-460.0,0.00017764,2]
[367492664,1750822248071,-460.0,0.00017764,2]
[367492665,1750822248081,-460.0,0.00017764,2]
[367492666,1750822248091,-460.0,0.00017764,2]
[367492667,1750822248100,-257.93,0.00017764,2]
[367492668,1750822248109,-470.72,0.00017764,2]
[367492669,1750822248119,-460.0,0.00017764,2]
[367492670,1750822248128,-2120.3,0.00017764,2]
[367492671,1750822248138,-441.09,0.00017765,2]
[367492672,1750822248148,-460.0,0.00017765,2]
[367492673,1750822248157,-252.16,0.00017765,2]
[367492674,1750822248166,-601.21,0.00017765,2]
[367492675,1750822248176,-460.0,0.00017765,2]
[367492676,1750822248185,-460.0,0.00017765,2]
[367492677,1750822248195,-538.43,0.00017765,2]
[367492678,1750822248204,-349.3,0.00017765,2]
[367492679,1750822248214,-460.0,0.00017765,2]
[367492680,1750822248223,-460.0,0.00017765,2]
[367492681,1750822248233,-465.51,0.00017765,2]
[367492682,1750822248241,-460.0,0.00017765,2]
[367492683,1750822248251,-460.0,0.00017765,2]
[367492684,1750822248259,-460.0,0.00017765,2]
[367492685,1750822248268,-460.0,0.00017765,2]
[367492686,1750822248278,-460.0,0.00017765,2]
[367492687,1750822248287,-460.0,0.00017765,2]
[367492688,1750822248296,-460.0,0.00017765,2]
[367492689,1750822248305,-460.0,0.00017765,2]
[367492690,1750822248315,-460.0,0.00017765,2]
[367492691,1750822248324,-460.0,0.00017765,2]
[367492692,1750822248333,-168.66103088,0.00017765,2]
[367492693,1750822248343,-460.0,0.00017765,2]
[367492694,1750822248352,-1211.94,0.00017765,2]
[367492695,1750822248361,-460.0,0.00017765,2]
[367492696,1750822248371,-159.90062576,0.00017765,2]
[367492697,1750822248380,-460.0,0.00017765,2]
[367492698,1750822248390,-321.87,0.00017765,2]
[367492699,1750822248399,-484.27,0.00017765,2]
[367492700,1750822248408,-460.0,0.00017765,2]
[367492701,1750822248417,-460.0,0.00017765,2]
[367492702,1750822248426,-1100.59,0.00017765,2]
[367492703,1750822248435,-460.0,0.00017765,2]
[367492704,1750822248445,-332.98738044,0.00017765,2]
[367492705,1750822248454,-460.0,0.00017765,2]
[367492706,1750822248463,-460.0,0.00017765,2]
[367492707,1750822248473,-460.0,0.00017765,2]
[367492708,1750822248482,-746.15,0.00017765,2]
[367492709,1750822248492,-460.0,0.00017765,2]
[367492710,1750822248502,-460.0,0.00017765,2]
[367492711,1750822248511,-1150.89,0.00017765,2]
[367492712,1750822248521,-460.0,0.00017765,2]
[367492713,1750822248530,-460.0,0.00017765,2]
[367492714,1750822248539,-500.0,0.00017765,2]
[367492715,1750822248549,-460.0,0.00017765,2]
[367492716,1750822248558,-460.0,0.00017765,2]
[367492717,1750822248569,-375.10716652,0.00017765,2]
[367492718,1750822248578,-621.42,0.00017765,2]
[367492719,1750822248587,-460.0,0.00017765,2]
[367492720,1750822248597,-632.11,0.00017765,2]
[367492721,1750822248606,-460.0,0.00017765,2]
[367492722,1750822248618,-460.0,0.00017765,2]
[367492723,1750822248628,-171.1241069,0.00017765,2]
[367492724,1750822248637,-460.0,0.00017765,2]
[367492725,1750822248647,-460.0,0.00017765,2]
[367492726,1750822248656,-460.0,0.00017765,2]
[367492727,1750822248665,-460.0,0.00017765,2]
[367492728,1750822248675,-460.0,0.00017766,2]
[367492729,1750822248685,-460.0,0.00017766,2]
[367492730,1750822248694,-467.51395587,0.00017766,2]
[367492731,1750822248704,-609.56,0.00017766,2]
[367492732,1750822248714,-460.0,0.00017766,2]
[367492733,1750822248724,-500.0,0.00017766,2]
[367492734,1750822248733,-500.0,0.00017766,2]
[367492735,1750822248743,-458.39075583,0.00017766,2]
[367492736,1750822248753,-460.0,0.00017766,2]
[367492737,1750822248763,-460.0,0.00017766,2]
[367492738,1750822248772,-487.21,0.00017766,2]
[367492739,1750822248782,-460.0,0.00017766,2]
[367492740,1750822248792,-460.0,0.00017766,2]
[367492741,1750822248801,-460.0,0.00017766,2]
[367492742,1750822248811,-364.78383402,0.00017767,2]
[367492743,1750822248821,-460.0,0.00017767,2]
[367492744,1750822248830,-460.0,0.00017767,2]
[367492745,1750822248839,-460.0,0.00017767,2]
[367492746,1750822248849,-460.0,0.00017767,2]
[367492747,1750822248858,-460.0,0.00017767,2]
[367492748,1750822248868,-460.0,0.00017767,2]
[367492749,1750822248877,-627.7,0.00017767,2]
[367492750,1750822248887,-460.0,0.00017767,2]
[367492751,1750822248896,-460.0,0.00017767,2]
[367492752,1750822248906,-182.26,0.00017767,2]
[367492753,1750822248915,-460.0,0.00017767,2]
[367492754,1750822248924,-528.63,0.00017767,2]
[367492755,1750822248934,-460.0,0.00017769,2]
[367492756,1750822248943,-460.0,0.00017769,2]
[367492757,1750822248953,-500.0,0.00017776,2]
[367492758,1750822248962,-500.0,0.00017776,2]
[367492759,1750822248971,-377.86166272,0.00017777,2]
[367492760,1750822248981,-502.0656318,0.00017777,2]
[367492761,1750822248991,-285.42035987,0.0001785,2]
[367492762,1750822249000,-460.0,0.00017944,2]
[367492763,1750822249009,-596.62307046,0.00018036,2]
[367492764,1750822249019,-460.0,0.00018036,2]
[367492765,1750822249029,-1104.74,0.00018037,2]
[367492766,1750822249039,-460.0,0.00018037,2]
[367492767,1750822249049,-1267.06,0.00018037,2]
[367492768,1750822249060,-1441.04,0.00018037,2]
[367492769,1750822249069,-460.0,0.00018037,2]
[367492770,1750822249079,-668.7,0.00018037,2]
[367492771,1750822249088,-460.0,0.00018037,2]
[367492772,1750822249098,-703.01,0.00018037,2]
[367492773,1750822249107,-355.68,0.00018038,2]
[367492774,1750822249117,-1130.96,0.00018038,2]
[367492775,1750822249127,-216.78110855,0.00018038,2]
[367492776,1750822249136,-460.0,0.00018038,2]
[367492777,1750822249146,-460.0,0.00018038,2]
[367492778,1750822249155,-893.13,0.00018038,2]
[367492779,1750822249165,-460.0,0.00018038,2]
[367492780,1750822249174,-460.0,0.00018038,2]
[367492781,1750822249183,-460.0,0.00018038,2]
[367492782,1750822249193,-460.0,0.00018038,2]
[367492783,1750822249203,-460.0,0.00018038,2]
[367492784,1750822249212,-460.0,0.00018038,2]
[367492785,1750822249222,-580.02,0.00018038,2]
[367492786,1750822249231,-460.0,0.00018038,2]
[367492787,1750822249240,-460.0,0.00018038,2]
[367492788,1750822249249,-460.0,0.00018038,2]
[367492789,1750822249259,-460.0,0.00018038,2]
[367492790,1750822249268,-2120.3,0.00018038,2]
[367492791,1750822249278,-355.58538406,0.00018039,2]
[367492792,1750822249287,-460.0,0.00018039,2]
[367492793,1750822249297,-460.0,0.00018039,2]
[367492794,1750822249306,-460.0,0.00018039,2]
[367492795,1750822249315,-460.0,0.00018039,2]
[367492796,1750822249325,-295.12,0.00018039,2]
[367492797,1750822249334,-440.05,0.00018039,2]
[367492798,1750822249345,-460.0,0.00018039,2]
[367492799,1750822249354,-460.0,0.00018039,2]
[367492800,1750822249363,-460.0,0.00018039,2]
[367492801,1750822249372,-460.0,0.00018039,2]
[367492802,1750822249381,-460.0,0.00018039,2]
[367492803,1750822249391,-228.79,0.00018039,2]
[367492804,1750822249400,-460.0,0.00018039,2]
[367492805,1750822249410,-1211.94,0.00018039,2]
[367492806,1750822249419,-562.59,0.00018039,2]
[367492807,1750822249429,-460.0,0.00018039,2]
[367492808,1750822249438,-460.0,0.00018039,2]
[367492809,1750822249447,-460.0,0.00018039,2]
[367492810,1750822249457,-1100.59,0.00018039,2]
[367492811,1750822249467,-460.0,0.00018039,2]
[367492812,1750822249476,-531.71,0.00018039,2]
[367492813,1750822249486,-460.0,0.00018039,2]
[367492814,1750822249497,-460.0,0.00018039,2]
[367492815,1750822249506,-746.15,0.00018039,2]
[367492816,1750822249515,-289.46,0.00018039,2]
[367492817,1750822249525,-542.45,0.00018039,2]
[367492818,1750822249535,-1150.89,0.00018039,2]
[367492819,1750822249544,-483.72,0.00018039,2]
[367492820,1750822249553,-460.0,0.00018039,2]
[367492821,1750822249563,-374.32,0.00018039,2]
[367492822,1750822249573,-460.0,0.00018039,2]
[367492823,1750822249583,-460.0,0.00018039,2]
[367492824,1750822249592,-621.42,0.00018039,2]
[367492825,1750822249601,-460.0,0.00018039,2]
[367492826,1750822249611,-632.11,0.00018039,2]
[367492827,1750822249624,-460.0,0.00018039,2]
[367492828,1750822249633,-460.0,0.00018039,2]
[367492829,1750822249643,-460.0,0.00018039,2]
[367492830,1750822249652,-460.0,0.00018039,2]
[367492831,1750822249661,-460.0,0.00018039,2]
[367492832,1750822249670,-602.15458354,0.0001804,2]
[367492833,1750822249680,-460.0,0.0001804,2]
[367492834,1750822249690,-159.96,0.0001804,2]
[367492835,1750822249699,-500.0,0.0001804,2]
[367492836,1750822249709,-500.0,0.0001804,2]
[367492837,1750822249719,-205.38,0.0001804,2]
[367492838,1750822249728,-460.0,0.0001804,2]
[367492839,1750822249737,-460.0,0.0001804,2]
[367492840,1750822249748,-460.0,0.0001804,2]
[367492841,1750822249757,-221.57,0.0001804,2]
[367492842,1750822249767,-460.0,0.00018041,2]
[367492843,1750822249777,-460.0,0.00018041,2]
[367492844,1750822249787,-439.92489201,0.00018041,2]
[367492845,1750822249796,-460.0,0.00018041,2]
[367492846,1750822249805,-569.26833549,0.00018041,2]
[367492847,1750822249815,-460.0,0.00018041,2]
[367492848,1750822249826,-627.7,0.00018041,2]
[367492849,1750822249836,-425.171196,0.00018041,2]
[367492850,1750822249846,-460.0,0.00018041,2]
[367492851,1750822249855,-257.82417325,0.00018041,2]
[367492852,1750822249864,-222.51,0.00018043,2]
[367492853,1750822249874,-460.0,0.00018043,2]
[367492854,1750822249883,-183.27479876,0.00018076,2]
[367492855,1750822249892,-1000.0,0.00018078,2]
[367492856,1750822249901,-1000.0,0.00018078,2]
[367492857,1750822249912,-1003.72718248,0.00018082,2]
[367492858,1750822249922,-1000.0,0.00018099,2]
[367492859,1750822249932,-1000.0,0.00018104,2]
[367492860,1750822249941,-501.04405135,0.00018106,2]
[367492861,1750822249950,-502.55043655,0.00018106,2]
[367492862,1750822249959,-1000.0,0.00018106,2]
[367492863,1750822249968,-502.42028969,0.00018106,2]
[367492864,1750822249977,-1000.0,0.00018128,2]
[367492865,1750822249988,-395.67986745,0.00018128,2]
[367492866,1750822249997,-504.49105772,0.00018128,2]
[367492867,1750822250006,-1000.0,0.00018139,2]
[367492868,1750822250014,-151.0,0.00018243,2]
[367492869,1750822250025,-151.0,0.00018243,2]
[367492870,1750822250034,-151.0,0.00018243,2]
[367492871,1750822250042,-151.0,0.0001827,2]
[367492872,1750822250051,-151.0,0.00018298,2]
[367492873,1750822250061,-500.0,0.00018299,2]
[367492874,1750822250070,-500.0,0.00018299,2]
[367492875,1750822250079,-3070.00849584,0.000183,2]
[367492876,1750822250089,-3070.00849568,0.000183,2]
[367492877,1750822250098,-460.0,0.0001831,2]
[367492878,1750822250107,-1104.74,0.00018311,2]
[367492879,1750822250116,-425.66,0.00018311,2]
[367492880,1750822250125,-1267.06,0.00018311,2]
[367492881,1750822250137,-1441.04,0.00018311,2]
[367492882,1750822250147,-460.0,0.00018311,2]
[367492883,1750822250159,-668.7,0.00018311,2]
[367492884,1750822250169,-460.0,0.00018311,2]
[367492885,1750822250178,-703.01,0.00018311,2]
[367492886,1750822250188,-1130.96,0.00018312,2]
[367492887,1750822250198,-460.0,0.00018312,2]
[367492888,1750822250208,-460.0,0.00018312,2]
[367492889,1750822250219,-893.13,0.00018312,2]
[367492890,1750822250229,-460.0,0.00018312,2]
[367492891,1750822250239,-460.0,0.00018312,2]
[367492892,1750822250247,-460.0,0.00018312,2]
[367492893,1750822250257,-460.0,0.00018312,2]
[367492894,1750822250267,-460.0,0.00018312,2]
[367492895,1750822250277,-460.0,0.00018312,2]
[367492896,1750822250287,-460.0,0.00018312,2]
[367492897,1750822250296,-460.0,0.00018312,2]
[367492898,1750822250306,-460.0,0.00018312,2]
[367492899,1750822250316,-460.0,0.00018312,2]
[367492900,1750822250325,-2120.3,0.00018312,2]
[367492901,1750822250334,-460.0,0.00018313,2]
[367492902,1750822250343,-286.84428964,0.00018313,2]
[367492903,1750822250353,-460.0,0.00018313,2]
[367492904,1750822250362,-460.0,0.00018313,2]
[367492905,1750822250371,-460.0,0.00018313,2]
[367492906,1750822250381,-405.2032867,0.00018313,2]
[367492907,1750822250390,-460.0,0.00018313,2]
[367492908,1750822250399,-460.0,0.00018313,2]
[367492909,1750822250408,-460.0,0.00018313,2]
[367492910,1750822250418,-460.0,0.00018313,2]
[367492911,1750822250427,-1211.94,0.00018313,2]
[367492912,1750822250437,-460.0,0.00018313,2]
[367492913,1750822250446,-460.0,0.00018313,2]
[367492914,1750822250456,-460.0,0.00018313,2]
[367492915,1750822250465,-1100.59,0.00018313,2]
[367492916,1750822250474,-460.0,0.00018313,2]
[367492917,1750822250484,-460.0,0.00018313,2]
[367492918,1750822250493,-460.0,0.00018313,2]
[367492919,1750822250502,-746.15,0.00018313,2]
[367492920,1750822250512,-1150.89,0.00018313,2]
[367492921,1750822250521,-460.0,0.00018313,2]
[367492922,1750822250530,-460.0,0.00018313,2]
[367492923,1750822250539,-460.0,0.00018313,2]
[367492924,1750822250548,-621.42,0.00018313,2]
[367492925,1750822250675,-460.0,0.00018313,2]
[367492926,1750822250686,-632.11,0.00018313,2]
[367492927,1750822250695,-375.16,0.00018313,2]
[367492928,1750822250705,-460.0,0.00018313,2]
[367492929,1750822250716,-460.0,0.00018313,2]
[367492930,1750822250726,-460.0,0.00018313,2]
[367492931,1750822250736,-460.0,0.00018313,2]
[367492932,1750822250745,-460.0,0.00018314,2]
[367492933,1750822250755,-500.0,0.00018314,2]
[367492934,1750822250764,-500.0,0.00018314,2]
[367492935,1750822250773,-460.0,0.00018314,2]
[367492936,1750822250783,-460.0,0.00018314,2]
[367492937,1750822250792,-469.65193533,0.00018315,2]
[367492938,1750822250802,-460.0,0.00018315,2]
[367492939,1750822250811,-460.0,0.00018315,2]
[367492940,1750822250820,-402.27685195,0.00018315,2]
[367492941,1750822250831,-627.7,0.00018315,2]
[367492942,1750822250840,-460.0,0.00018315,2]
[367492943,1750822250849,-460.0,0.00018317,2]
[367492944,1750822250859,-277.98613896,0.00018325,2]
[367492945,1750822250868,-3070.00849568,0.00018452,2]
[367492946,1750822250878,-500.0,0.00018484,2]
[367492947,1750822250888,-500.0,0.00018484,2]
[367492948,1750822250897,-420.0,0.00018503,2]
[367492949,1750822250907,-420.0,0.00018503,2]
[367492950,1750822250916,-160.0,0.00018533,2]
[367492951,1750822250926,-836.86812089,0.00018533,2]
[367492952,1750822250936,-213.69531788,0.00018533,2]
[367492953,1750822250946,-12558.06783089,0.00018533,2]
[367492954,1750822250955,-425.18553072,0.00018533,2]
[367492955,1750822250965,-846.80634355,0.00018533,2]
[367492956,1750822250974,-160.0,0.00018533,2]
[367492957,1750822250983,-230.22714675,0.00018533,2]
[367492958,1750822250994,-439.46,0.00018584,2]
[367492959,1750822251004,-1104.74,0.00018585,2]
[367492960,1750822251014,-1267.06,0.00018585,2]
[367492961,1750822251024,-1441.04,0.00018585,2]
[367492962,1750822251033,-460.0,0.00018585,2]
[367492963,1750822251043,-668.7,0.00018585,2]
[367492964,1750822251052,-460.0,0.00018585,2]
[367492965,1750822251061,-703.01,0.00018585,2]
[367492966,1750822251070,-1130.96,0.00018586,2]
[367492967,1750822251080,-460.0,0.00018586,2]
[367492968,1750822251091,-460.0,0.00018586,2]
[367492969,1750822251101,-893.13,0.00018586,2]
[367492970,1750822251110,-460.0,0.00018586,2]
[367492971,1750822251119,-460.0,0.00018586,2]
[367492972,1750822251129,-460.0,0.00018586,2]
[367492973,1750822251138,-460.0,0.00018586,2]
[367492974,1750822251148,-460.0,0.00018586,2]
[367492975,1750822251157,-446.08,0.00018586,2]
[367492976,1750822251166,-460.0,0.00018586,2]
[367492977,1750822251176,-460.0,0.00018586,2]
[367492978,1750822251185,-460.0,0.00018586,2]
[367492979,1750822251194,-460.0,0.00018586,2]
[367492980,1750822251204,-2120.3,0.00018586,2]
[367492981,1750822251214,-460.0,0.00018587,2]
[367492982,1750822251224,-152.61,0.00018587,2]
[367492983,1750822251233,-460.0,0.00018587,2]
[367492984,1750822251243,-460.0,0.00018587,2]
[367492985,1750822251252,-460.0,0.00018587,2]
[367492986,1750822251260,-460.0,0.00018587,2]
[367492987,1750822251269,-460.0,0.00018587,2]
[367492988,1750822251279,-460.0,0.00018587,2]
[367492989,1750822251288,-1211.94,0.00018587,2]
[367492990,1750822251297,-460.0,0.00018587,2]
[367492991,1750822251307,-460.0,0.00018587,2]
[367492992,1750822251316,-460.0,0.00018587,2]
[367492993,1750822251325,-1100.59,0.00018587,2]
[367492994,1750822251334,-460.0,0.00018587,2]
[367492995,1750822251343,-460.0,0.00018587,2]
[367492996,1750822251353,-460.0,0.00018587,2]
[367492997,1750822251362,-746.15,0.00018587,2]
[367492998,1750822251372,-1150.89,0.00018587,2]
[367492999,1750822251381,-460.0,0.00018587,2]
[367493000,1750822251391,-460.0,0.00018587,2]
[367493001,1750822251400,-460.0,0.00018587,2]
[367493002,1750822251409,-621.42,0.00018587,2]
[367493003,1750822251418,-431.61818901,0.00018587,2]
[367493004,1750822251427,-632.11,0.00018587,2]
[367493005,1750822251436,-460.0,0.00018587,2]
[367493006,1750822251445,-460.0,0.00018587,2]
[367493007,1750822251454,-327.83,0.00018587,2]
[367493008,1750822251464,-460.0,0.00018587,2]
[367493009,1750822251474,-460.0,0.00018588,2]
[367493010,1750822251483,-500.0,0.00018588,2]
[367493011,1750822251493,-500.0,0.00018588,2]
[367493012,1750822251502,-311.11645959,0.00018588,2]
[367493013,1750822251512,-500.0,0.00018588,2]
[367493014,1750822251521,-540.24256566,0.00018588,2]
[367493015,1750822251530,-460.0,0.00018588,2]
[367493016,1750822251540,-460.0,0.00018588,2]
[367493017,1750822251549,-460.0,0.00018589,2]
[367493018,1750822251558,-460.0,0.00018589,2]
[367493019,1750822251567,-627.7,0.00018589,2]
[367493020,1750822251576,-460.0,0.00018589,2]
[367493021,1750822251585,-256.1,0.00018591,2]
[367493022,1750822251595,-1500.0,0.00018626,2]